bitfinex-derivatives/quotes_ETHF0:USTF0_20250524
["timestamp","ask_amount","ask_price","bid_price","bid_amount"]
[1748117867193,18.3986,2554.8,2554.7,3.3823634]
[1748117868194,18.3986,2554.8,2554.7,3.3823668]
[1748117869293,0.7826,2554.8,2554.7,3.3823668]
[1748117869500,18.3986,2554.8,2554.7,3.3823668]
[1748117869797,18.47409626,2554.8,2554.7,3.3823668]
[1748117869989,18.47409626,2554.8,2554.7,3.38245042]
[1748117870391,18.47409626,2554.8,2554.7,2.59982042]
[1748117870998,18.47409626,2554.8,2554.7,3.38245042]
[1748117871199,0.07549626,2554.8,2554.7,3.38245042]
[1748117873494,0.07549626,2554.8,2554.7,3.38256403]
[1748117873693,0.85809626,2554.8,2554.7,2.59993403]
[1748117873996,2.22499626,2554.8,2554.7,2.59993403]
[1748117875301,2.22499626,2554.8,2554.7,3.38269878]
[1748117876002,2.22499626,2554.8,2554.7,0.55306878]
[1748117877604,2.22499626,2554.8,2554.7,1.33569878]
[1748117877799,2.22499626,2554.8,2554.7,0.55306878]
[1748117878401,2.22499626,2554.8,2554.7,1.91756878]
[1748117879005,2.22499626,2554.8,2554.7,1.91789927]
[1748117879396,2.22499626,2554.8,2554.7,0.55339927]
[1748117879593,7.22499626,2554.8,2554.7,0.55339927]
[1748117882510,10.43279626,2554.8,2554.7,0.55339927]
[1748117883406,0.78275,2554.3,2554.2,2.09976051]
[1748117883600,21.60653,2554.4,2554.2,1.31698051]
[1748117883797,21.60653,2554.4,2554.3,1.2974]
[1748117886311,0.78275,2554.3,2554.2,0.00588051]
[1748117886512,0.78288,2553.9,2553.8,0.72605512]
[1748117886810,0.78288,2553.9,2553.8,2.10155512]
[1748117887206,0.78288,2553.9,2553.8,1.3755]
[1748117887407,20.8238,2554.0,2553.9,0.78288]
[1748117887815,21.60667,2554.0,2553.8,2.15838]
[1748117888113,0.78288,2553.9,2553.8,1.3755]
[1748117888313,0.78288,2553.9,2553.7,2.11562]
[1748117888613,0.78288,2553.9,2553.8,0.78291]
[1748117888813,0.78291,2553.8,2553.7,1.3327]
[1748117889215,0.78291,2553.8,2553.7,2.11564]
[1748117893518,0.78291,2553.8,2553.7,1.3327]
[1748117894315,0.78291,2553.8,2553.7,0.6503]
[1748117896422,0.78291,2553.8,2553.7,1.43324]
[1748117896922,0.78291,2553.8,2553.7,0.6503]
[1748117897617,0.78291,2553.8,2553.7,1.43324]
[1748117899127,3.2078,2554.0,2553.7,0.6503]
[1748117899424,21.61066,2554.0,2553.9,0.78288]
[1748117899925,20.8278,2554.0,2553.8,0.7055]
[1748117900128,21.61067,2554.0,2553.9,0.78288]
[1748117900929,0.78288,2553.9,2553.8,1.48839]
[1748117904333,0.78288,2553.9,2553.8,2.85219]
[1748117906931,0.78286,2554.0,2553.9,0.78286]
[1748117907131,0.78286,2554.0,2553.9,2.12306]
[1748117909234,0.78286,2554.0,2553.9,2.12308]
[1748117909634,0.78286,2554.0,2553.9,1.3402]
[1748117916639,0.85835626,2554.0,2553.9,1.3402]
[1748117917040,2.15815626,2554.0,2553.9,1.3402]
[1748117917942,4.50219082,2554.0,2553.9,1.3402]
[1748117918538,0.78294,2553.7,2553.6,0.00588051]
[1748117918741,0.78297,2553.6,2553.5,5.63e-06]
[1748117918940,2.08277,2553.6,2553.5,5.63e-06]
[1748117919139,7.08277,2553.6,2553.5,5.63e-06]
[1748117919944,10.21468,2553.6,2552.6,3.2078]
[1748117920144,3.2078,2553.0,2552.6,3.99106]
[1748117920341,1.4315,2552.9,2552.7,1.3003]
[1748117921142,1.4315,2552.9,2552.7,2.08354]
[1748117921345,0.6483,2552.9,2552.8,0.78321]
[1748117921541,1.43148,2552.9,2552.8,1.3003]
[1748117922344,0.6483,2552.9,2552.8,2.08351]
[1748117922544,0.6483,2552.9,2552.8,1.3003]
[1748117923445,1.43148,2552.9,2552.8,1.3003]
[1748117923646,2.73018,2552.9,2552.8,1.3003]
[1748117927347,1.947,2552.9,2552.8,2.08351]
[1748117928653,2.73018,2552.9,2552.8,1.3003]
[1748117931745,2.73018,2552.9,2552.8,2.08351]
[1748117931950,2.73018,2552.9,2552.8,1.3003]
[1748117932147,2.73018,2552.9,2552.8,2.08351]
[1748117932348,2.73018,2552.9,2552.8,1.3003]
[1748117932543,20.35618,2552.9,2552.8,1.3003]
[1748117935051,20.35618,2552.9,2552.8,1.9555]
[1748117936353,20.35618,2552.9,2552.8,2.6188]
[1748117938652,19.573,2552.9,2552.5,0.00588051]
[1748117938858,0.78327,2552.6,2552.5,0.00588051]
[1748117939753,2.10857,2552.6,2552.5,0.00588051]
[1748117940459,34.70657,2552.6,2552.5,0.00588051]
[1748117942161,34.70657,2552.6,2552.5,1.38778051]
[1748117942853,34.70657,2552.6,2552.5,2.75648051]
[1748117944154,5.55768281,2552.8,2552.5,2.75648051]
[1748117944356,5.55768281,2552.8,2552.7,0.78324]
[1748117944660,0.78324,2552.7,2552.6,2.13905]
[1748117945160,20.84168051,2552.8,2552.6,2.13905]
[1748117945359,3.21368051,2552.8,2552.7,2.13904]
[1748117945662,3.99689051,2552.8,2552.7,2.13904]
[1748117946162,3.99689051,2552.8,2552.7,1.3558]
[1748117946663,3.21368051,2552.8,2552.7,2.13904]
[1748117947356,0.00588051,2552.8,2552.7,2.13904]
[1748117947663,0.78909051,2552.8,2552.7,1.3558]
[1748117948962,0.78909051,2552.8,2552.7,2.13904]
[1748117949260,0.78909051,2552.8,2552.7,1.3558]
[1748117949864,0.78909051,2552.8,2552.7,2.13904]
[1748117949865,0.00588051,2552.8,2552.7,2.13904]
[1748117952965,0.78909051,2552.8,2552.7,2.13904]
[1748117955267,0.00588051,2552.8,2552.7,2.13904]
[1748117956467,0.78909051,2552.8,2552.7,2.13904]
[1748117957064,0.00588051,2552.8,2552.7,2.13904]
[1748117957971,0.78909051,2552.8,2552.7,2.13904]
[1748117964473,0.78909051,2552.8,2552.5,1.38778051]
[1748117964474,0.78327,2552.6,2552.5,0.71328051]
[1748117964674,0.78327,2552.6,2552.5,0.00588051]
[1748117965173,2.12817,2552.6,2552.5,0.00588051]
[1748117975594,2.12817,2552.6,2552.5,0.68668051]
[1748117975793,2.12817,2552.6,2552.5,2.00428051]
[1748117979898,2.12817,2552.6,2552.5,2.66188051]
[1748117980901,2.12817,2552.6,2552.5,0.68668051]
[1748117981094,2.12817,2552.6,2552.5,0.00588051]
[1748117991305,2.12817,2552.6,2552.5,0.57208569]
[1748117991803,2.12817,2552.6,2552.5,0.57213264]
[1748117995511,2.12817,2552.6,2552.5,0.56146013]
[1748117997114,2.12817,2552.6,2552.5,0.56125122]
[1748118000615,2.12817,2552.6,2552.5,0.56118458]
[1748118001417,2.12817,2552.6,2552.5,0.56112799]
[1748118002619,2.12817,2552.6,2552.5,0.56113027]
[1748118003914,18.41527,2552.6,2552.5,0.56113027]
[1748118005222,0.78327,2552.6,2552.5,0.56113027]
[1748118005422,18.41527,2552.6,2552.5,0.56113027]
[1748118006122,0.78327,2552.6,2552.5,1.23218065]
[1748118007824,0.78327,2552.6,2552.5,1.22733895]
[1748118008019,6.32839199,2552.7,2552.5,1.22733895]
[1748118008225,7.11163199,2552.7,2552.6,2.54745844]
[1748118009521,3.99104,2552.7,2552.6,2.5471925]
[1748118010821,18.96204,2552.7,2552.6,0.5500925]
[1748118011026,20.26114,2552.7,2552.6,0.5500925]
[1748118011221,0.78327,2552.6,2552.5,0.00588051]
[1748118011424,2.81527,2552.6,2552.5,0.55621656]
[1748118012320,2.81527,2552.6,2552.5,0.00588051]
[1748118013125,0.78352,2551.8,2551.7,3.2078]
[1748118013322,0.78352,2551.8,2551.7,4.4643634]
[1748118015129,0.78352,2551.8,2551.7,5.8557634]
[1748118016124,0.78351,2551.9,2551.7,5.8557634]
[1748118016324,0.78349,2551.9,2551.8,1.9557634]
[1748118016529,0.78349,2551.9,2551.8,1.95611054]
[1748118017722,0.78349,2551.9,2551.4,14.971]
[1748118017723,1.95881,2551.8,2550.5,1.95204715]
[1748118018030,3.99144,2551.4,2551.2,0.6959]
[1748118018226,21.62444,2551.4,2551.2,0.6959]
[1748118018433,0.78367,2551.3,2551.2,0.6959]
[1748118018631,2.17047,2551.3,2551.2,0.6959]
[1748118021627,2.17047,2551.3,2551.2,2.0543]
[1748118028131,3.2078,2551.4,2551.2,2.0543]
[1748118028326,3.2078,2551.4,2551.3,2.12267]
[1748118028731,3.2078,2551.4,2551.3,7.12267]
[1748118032036,0.78949051,2551.5,2551.4,0.78364]
[1748118032237,0.00588051,2551.5,2551.4,17.16034]
[1748118034438,0.00588051,2551.5,2551.4,22.16034]
[1748118035438,0.00588051,2551.5,2551.4,17.16034]
[1748118040931,0.00588051,2551.5,2551.4,22.16034]
[1748118046347,0.00588051,2551.5,2551.4,17.16034]
[1748118048447,0.00588051,2551.5,2551.4,17.23583626]
[1748118049450,0.00588051,2551.5,2551.4,17.16034]
[1748118058850,0.00588051,2551.5,2551.4,17.82404]
[1748118062453,0.00588051,2551.5,2551.4,18.39081168]
[1748118062649,1.37788051,2551.5,2551.4,18.39081168]
[1748118063555,1.37788051,2551.5,2551.4,19.12003108]
[1748118063955,1.37788051,2551.5,2551.4,17.82733108]
[1748118064159,1.37788051,2551.5,2551.4,17.16437189]
[1748118067651,1.37788051,2551.5,2551.4,16.5968594]
[1748118067956,1.37788051,2551.5,2551.4,17.15268954]
[1748118069460,1.37788051,2551.5,2551.4,17.15269113]
[1748118071457,1e-08,2551.8,2551.7,0.78355]
[1748118071654,1.36250001,2551.8,2551.7,1.33937362]
[1748118071849,1.3625,2551.8,2551.7,1.33937362]
[1748118072055,1.3625,2551.8,2551.7,1.64573303]
[1748118073052,1.3625,2551.8,2551.7,1.6461939]
[1748118074762,1.3625,2551.8,2551.7,1.62735048]
[1748118075762,2.14602,2551.8,2551.7,1.62735048]
[1748118075961,5.35382,2551.8,2551.7,1.62735048]
[1748118076362,4.5703,2551.8,2551.7,1.62735048]
[1748118076663,5.35382,2551.8,2551.7,0.84380048]
[1748118077061,10.35382,2551.8,2551.7,0.5552762]
[1748118078267,0.78358,2551.7,2551.5,0.7836]
[1748118078459,2.84928,2551.7,2551.6,0.54999828]
[1748118079167,19.6997,2551.7,2551.6,1.33357828]
[1748118079763,20.48325,2551.7,2551.6,0.54999828]
[1748118080066,20.48325,2551.7,2551.6,0.54980142]
[1748118080365,20.48325,2551.7,2551.6,1.33338142]
[1748118080564,20.48325,2551.7,2551.6,0.54980142]
[1748118081771,20.48325,2551.7,2551.6,1.33328559]
[1748118083260,1.4029,2551.7,2551.6,1.33328559]
[1748118083673,1.4029,2551.7,2551.6,1.33306262]
[1748118084168,1.4029,2551.7,2551.6,2.00826262]
[1748118085374,1.4029,2551.7,2551.6,2.00828749]
[1748118087273,1.4029,2551.7,2551.6,2.00827039]
[1748118087774,1.4029,2551.7,2551.6,1.45878]
[1748118096081,1.4029,2551.7,2551.6,2.87488]
[1748118100684,1.4029,2551.7,2551.6,3.42272543]
[1748118101078,1.4917,2551.9,2551.8,0.78352]
[1748118101382,2.1044,2551.9,2551.8,1.33136543]
[1748118101887,2.1044,2551.9,2551.8,2.63586543]
[1748118102485,2.88789,2551.9,2551.8,2.63586543]
[1748118103785,2.1044,2551.9,2551.8,2.63586543]
[1748118104582,2.1044,2551.9,2551.8,2.63609926]
[1748118105188,2.88789,2551.9,2551.8,2.63609926]
[1748118105392,2.88789,2551.9,2551.8,1.33159926]
[1748118106801,2.88789,2551.9,2551.8,1.33165264]
[1748118108487,2.1044,2551.9,2551.8,1.33165264]
[1748118108694,2.1044,2551.9,2551.8,0.78352]
[1748118109694,2.88789,2551.9,2551.8,0.78352]
[1748118110193,0.78352,2551.8,2551.7,2.0011]
[1748118110595,2.08952,2551.8,2551.7,2.78465]
[1748118111794,1.306,2551.8,2551.7,2.78465]
[1748118111997,2.3534873,2552.0,2551.9,0.78349]
[1748118112188,2.3534873,2552.0,2551.9,15.78649]
[1748118113296,0.00588051,2552.0,2551.9,15.78649]
[1748118113599,0.00588051,2552.0,2551.9,17.12149]
[1748118121903,0.00588051,2552.0,2551.9,15.003]
[1748118122204,2.07288051,2552.0,2551.9,15.003]
[1748118122402,2.85634051,2552.0,2551.9,15.78649]
[1748118122602,2.07288051,2552.0,2551.9,15.78649]
[1748118122900,2.07288051,2552.0,2551.9,15.76049]
[1748118123905,2.07288051,2552.0,2551.9,0.78349]
[1748118124204,2.07288051,2552.0,2551.9,15.76049]
[1748118124603,2.07288051,2552.0,2551.9,0.78349]
[1748118124900,2.07288051,2552.0,2551.9,15.76049]
[1748118125204,2.07288051,2552.0,2551.9,0.78349]
[1748118125399,2.07288051,2552.0,2551.9,15.76049]
[1748118125610,0.78355,2551.7,2551.6,15.6522]
[1748118125803,3.2078,2551.8,2551.6,15.76056]
[1748118126098,2.08195,2551.7,2551.6,15.76056]
[1748118126292,2.75475,2551.7,2551.6,15.76056]
[1748118127406,2.75475,2551.7,2551.6,14.977]
[1748118127703,2.75475,2551.7,2551.6,15.76058]
[1748118128508,5.96255,2551.7,2551.6,15.76058]
[1748118132614,2.75475,2551.7,2551.6,15.76058]
[1748118135813,2.08195,2551.7,2551.6,15.76058]
[1748118136013,1.2984,2551.7,2551.6,15.76058]
[1748118136215,3.99132,2551.8,2551.7,0.78355]
[1748118136517,3.99132,2551.8,2551.7,2.85725]
[1748118136813,3.99132,2551.8,2551.7,3.50565]
[1748118138717,3.2078,2551.8,2551.7,3.50565]
[1748118139014,2.0703,2551.9,2551.8,0.78352]
[1748118139219,0.7835,2551.9,2551.8,0.78352]
[1748118140520,0.66558051,2552.0,2551.9,0.78349]
[1748118143618,0.00588051,2552.0,2551.9,0.78349]
[1748118144025,5.1e-07,2552.0,2551.9,5.78349]
[1748118145122,5.1e-07,2552.0,2551.9,7.8526094]
[1748118152225,5.1e-07,2552.0,2551.9,7.12339]
[1748118153536,5.1e-07,2552.0,2551.9,7.84839]
[1748118154845,5.1e-07,2552.0,2551.9,8.57483025]
[1748118156139,5.1e-07,2552.0,2551.9,7.84839]
[1748118158445,5.1e-07,2552.0,2551.9,11.05619]
[1748118159447,5.1e-07,2552.0,2551.9,6.05619]
[1748118160648,1.3423,2552.6,2552.5,0.7833]
[1748118160853,1.3423,2552.6,2552.5,15.7553]
[1748118161247,0.6507,2552.9,2552.8,0.78321]
[1748118161644,1.3147,2553.0,2552.9,0.78318]
[1748118161841,1.3147,2553.0,2552.9,15.75518]
[1748118167752,1.3147,2553.0,2552.9,16.03601673]
[1748118168245,1.3147,2553.0,2552.9,1.06401673]
[1748118168452,1.3147,2553.0,2552.9,16.03401673]
[1748118169050,1.3147,2553.0,2552.9,16.03410239]
[1748118170453,1.39019626,2553.0,2552.9,16.03410239]
[1748118170648,1.39019626,2553.0,2552.9,15.75318]
[1748118170850,1.39019626,2553.0,2552.9,16.03433453]
[1748118171347,1.3147,2553.0,2552.9,16.03433453]
[1748118171851,1.3147,2553.0,2552.9,15.75318]
[1748118182560,1.39019626,2553.0,2552.9,15.75318]
[1748118183557,1.3147,2553.0,2552.9,15.75318]
[1748118185960,1.3147,2553.0,2552.9,0.78318]
[1748118186259,1.3147,2553.0,2552.9,15.74918]
[1748118190265,1.3147,2553.0,2552.9,0.78318]
[1748118190564,1.3147,2553.0,2552.9,15.74918]
[1748118190770,1.39019626,2553.0,2552.9,15.74918]
[1748118191362,1.39019626,2553.0,2552.9,16.47524157]
[1748118191862,1.3147,2553.0,2552.9,16.47524157]
[1748118192163,1.3147,2553.0,2552.9,17.17714157]
[1748118192562,1.3147,2553.0,2552.9,2.21114157]
[1748118192759,1.39019626,2553.0,2552.9,17.17714157]
[1748118193466,1.39019626,2553.0,2552.9,2.21114157]
[1748118193764,1.3147,2553.0,2552.9,17.17714157]
[1748118195568,1.3147,2553.0,2552.9,2.21114157]
[1748118195866,1.3147,2553.0,2552.9,17.17714157]
[1748118197266,1.3147,2553.0,2552.9,2.21114157]
[1748118197468,1.3147,2553.0,2552.9,17.17714157]
[1748118197667,1.3147,2553.0,2552.9,2.21114157]
[1748118197867,1.3147,2553.0,2552.9,17.17714157]
[1748118198369,0.69138051,2553.1,2553.0,0.78315]
[1748118198669,0.69138051,2553.1,2553.0,2.12275]
[1748118198975,0.69138051,2553.1,2553.0,2.76985]
[1748118199156,0.69138051,2553.1,2553.0,17.73585]
[1748118199869,0.69138051,2553.1,2553.0,2.76985]
[1748118200064,0.69138051,2553.1,2553.0,17.73585]
[1748118200765,0.69138051,2553.1,2553.0,2.76985]
[1748118200972,0.69138051,2553.1,2553.0,17.73585]
[1748118204573,0.69138051,2553.1,2553.0,18.46191157]
[1748118213881,0.00588051,2553.1,2553.0,18.46191157]
[1748118214981,0.00588051,2553.1,2553.0,20.94365]
[1748118215482,0.00588051,2553.1,2553.0,0.78315]
[1748118216278,0.69578051,2553.1,2553.0,1.34593138]
[1748118217081,0.77127677,2553.1,2553.0,1.34593138]
[1748118217580,0.77127677,2553.1,2553.0,2.07576553]
[1748118217777,0.77127677,2553.1,2553.0,2.07645968]
[1748118218181,0.69578051,2553.1,2553.0,2.07645968]
[1748118218880,0.69578051,2553.1,2553.0,1.34662553]
[1748118219184,0.77127677,2553.1,2553.0,1.34662553]
[1748118219582,0.77127677,2553.1,2553.0,1.3466582]
[1748118221481,0.77127677,2553.1,2553.0,1.34665928]
[1748118221783,0.08137677,2553.1,2553.0,1.34665928]
[1748118221983,0.08137677,2553.1,2553.0,4.55445928]
[1748118221984,6.77e-06,2553.1,2553.0,4.55445928]
[1748118222178,3.2078,2553.6,2553.1,1.9578]
[1748118222179,2.34760679,2553.5,2553.1,1.9578]
[1748118222379,2.34760679,2553.5,2553.4,0.78303]
[1748118222579,3.69680679,2553.5,2553.4,1.34653928]
[1748118223182,1.3492,2553.5,2553.4,1.34653928]
[1748118223382,1.3492,2553.5,2553.4,1.34631318]
[1748118224581,1.3492,2553.5,2553.4,2.74011318]
[1748118225277,1.3492,2553.5,2553.4,2.17683]
[1748118228587,1.3492,2553.5,2553.4,2.7399522]
[1748118228885,1.3492,2553.5,2553.4,2.73993392]
[1748118229478,1.3492,2553.5,2553.4,2.73991607]
[1748118229686,3.2078,2553.6,2553.5,0.783]
[1748118229983,4.5124,2553.6,2553.5,2.66348607]
[1748118232688,4.5124,2553.6,2553.5,2.65822103]
[1748118233789,5.29537,2553.6,2553.5,2.65822103]
[1748118234590,0.00588051,2553.7,2553.6,0.78297]
[1748118234788,0.00588051,2553.7,2553.6,2.03545066]
[1748118235090,0.00588051,2553.7,2553.6,3.43955066]
[1748118238287,0.00588051,2553.7,2553.6,2.88177]
[1748118238493,0.00588051,2553.7,2553.6,3.43870886]
[1748118240191,0.00588051,2553.7,2553.6,3.43843126]
[1748118240780,0.00588051,2553.7,2553.6,3.43844391]
[1748118241186,1.31768051,2553.7,2553.6,3.43844391]
[1748118242093,1.31768051,2553.7,2553.6,3.4383845]
[1748118242288,0.00588051,2553.7,2553.6,3.4383845]
[1748118243988,0.00588051,2553.7,2553.6,3.43828298]
[1748118245393,5.1e-07,2553.7,2553.6,8.43828298]
[1748118245588,3.207,2554.2,2554.1,0.78281]
[1748118245786,3.207,2554.2,2554.1,16.29432298]
[1748118246494,3.207,2554.2,2554.1,18.28512298]
[1748118248289,3.207,2554.2,2554.1,3.33012298]
[1748118248496,3.207,2554.2,2554.1,18.28312298]
[1748118249591,3.207,2554.2,2554.1,18.28209217]
[1748118253192,4.5698,2554.2,2554.1,18.28209217]
[1748118254591,4.5698,2554.2,2554.1,3.32909217]
[1748118254793,10.35258,2554.2,2554.1,0.55548217]
[1748118254991,11.06148,2554.2,2554.1,0.55548217]
[1748118255300,0.78284,2554.1,2553.9,0.78874051]
[1748118255495,2.12554,2554.1,2554.0,0.55560304]
[1748118255993,7.12554,2554.1,2554.0,0.55560304]
[1748118256503,7.12554,2554.1,2554.0,1.33845304]
[1748118257093,7.12554,2554.1,2554.0,1.33368229]
[1748118258402,2.12554,2554.1,2554.0,1.33368229]
[1748118258698,1.3427,2554.1,2554.0,0.78284]
[1748118260195,1.3427,2554.1,2553.9,0.00588051]
[1748118260401,0.78284,2554.0,2553.9,0.78875051]
[1748118260601,1.48964,2554.0,2553.9,0.78875051]
[1748118260993,0.7068,2554.0,2553.9,0.78875051]
[1748118261394,2.0161,2554.0,2553.9,0.78875051]
[1748118263807,2.0161,2554.0,2553.9,2.13905051]
[1748118264314,1.3093,2554.0,2553.9,2.13905051]
[1748118277018,1.3093,2554.0,2553.9,0.78875051]
[1748118277418,2.09214,2554.0,2553.9,0.78875051]
[1748118277919,1.3093,2554.0,2553.9,0.78875051]
[1748118278220,1.38479626,2554.0,2553.9,0.78875051]
[1748118280119,2.16763626,2554.0,2553.9,0.00588051]
[1748118280718,2.16763626,2554.0,2553.9,0.78876051]
[1748118282126,2.09214,2554.0,2553.9,0.78876051]
[1748118283223,1.38479626,2554.0,2553.9,0.78876051]
[1748118283423,2.16763626,2554.0,2553.9,0.00588051]
[1748118283625,2.16763626,2554.0,2553.9,0.78876051]
[1748118285226,2.09214,2554.0,2553.9,0.78876051]
[1748118287824,2.09214,2554.0,2553.9,0.00588051]
[1748118288026,2.09214,2554.0,2553.5,0.72983415]
[1748118288027,0.78297,2553.6,2553.5,0.72983415]
[1748118288228,3.99077,2553.6,2553.5,0.72983415]
[1748118288527,3.2078,2553.6,2553.5,1.51283415]
[1748118288927,5.2595,2553.6,2553.5,1.51283415]
[1748118289728,6.04247,2553.6,2553.5,1.51283415]
[1748118289928,6.04247,2553.6,2553.5,0.783]
[1748118297534,6.04247,2553.6,2553.5,1.4378]
[1748118299230,3.2078,2553.6,2553.5,1.4378]
[1748118299432,3.2078,2553.6,2553.5,2.8087]
[1748118301134,2.14244,2553.7,2553.6,0.78297]
[1748118301334,5.35024,2553.7,2553.6,2.17197]
[1748118301834,5.35024,2553.7,2553.6,1.389]
[1748118303036,0.78303,2553.4,2553.3,14.97788051]
[1748118303630,0.78303,2553.4,2553.3,0.00588051]
[1748118303930,3.99083,2553.4,2553.3,0.00588051]
[1748118304135,0.78315,2553.0,2552.9,1.38573415]
[1748118304534,0.78315,2553.0,2552.9,2.16891415]
[1748118304734,2.20105,2553.0,2552.9,2.16891415]
[1748118305133,2.20105,2553.0,2552.9,1.43908]
[1748118305335,2.20105,2553.0,2552.9,0.6559]
[1748118307340,2.20105,2553.0,2552.9,1.43908]
[1748118307538,1.4179,2553.0,2552.9,1.43908]
[1748118308445,1.4179,2553.0,2552.9,2.14068]
[1748118309741,2.20105,2553.0,2552.9,2.14068]
[1748118310241,2.20105,2553.0,2552.9,0.6559]
[1748118310543,2.20105,2553.0,2552.9,1.43908]
[1748118310741,2.20105,2553.0,2552.9,0.6559]
[1748118314343,2.20105,2553.0,2552.9,1.43908]
[1748118316344,2.20105,2553.0,2552.9,0.6559]
[1748118316536,2.20105,2553.0,2552.9,1.43908]
[1748118317638,19.82605,2553.0,2552.9,1.43908]
[1748118321548,19.82605,2553.0,2552.9,2.80458]
[1748118324749,19.0429,2553.0,2552.9,2.80458]
[1748118325949,19.82605,2553.0,2552.9,2.80458]
[1748118332051,19.82605,2553.0,2552.9,0.6559]
[1748118332253,0.78321,2552.8,2552.7,0.00588051]
[1748118332954,2.79121,2552.8,2552.7,0.78912051]
[1748118344866,2.008,2552.8,2552.7,0.78912051]
[1748118345066,5.5612873,2553.0,2552.9,0.78318]
[1748118345563,3.21368051,2553.0,2552.9,0.78318]
[1748118345769,3.21368051,2553.0,2552.9,2.71988]
[1748118346165,0.00588051,2553.0,2552.9,2.71988]
[1748118354079,0.78903051,2553.0,2552.9,2.71988]
[1748118354277,2.08523051,2553.0,2552.9,2.71988]
[1748118355180,5.29303051,2553.0,2552.9,2.71988]
[1748118355374,5.29303051,2553.0,2552.8,1.4732]
[1748118355575,0.78321,2552.8,2552.7,0.00588051]
[1748118355781,0.78321,2552.8,2552.7,0.78912051]
[1748118355979,2.14161,2552.8,2552.7,0.78912051]
[1748118357476,2.14161,2552.8,2552.7,2.19012051]
[1748118359588,2.14161,2552.8,2552.7,0.00588051]
[1748118362389,2.14161,2552.8,2552.7,0.78912051]
[1748118362985,1.3584,2552.8,2552.7,0.78912051]
[1748118363188,1.3584,2552.8,2552.7,1.49452051]
[1748118363590,1.3584,2552.8,2552.7,2.79652051]
[1748118363786,2.14161,2552.8,2552.7,2.79652051]
[1748118367290,2.14161,2552.8,2552.7,1.49452051]
[1748118368994,2.14161,2552.8,2552.7,0.78912051]
[1748118370989,2.14161,2552.8,2552.7,0.00588051]
[1748118371190,2.78501,2552.8,2552.7,0.00588051]
[1748118372698,2.78501,2552.8,2552.2,0.72983415]
[1748118372699,0.78337,2552.3,2552.2,0.72983415]
[1748118373390,2.11897,2552.3,2552.2,0.72983415]
[1748118373894,2.11897,2552.3,2552.2,0.7834]
[1748118374197,0.7834,2552.2,2552.1,0.6858]
[1748118374399,2.0706,2552.2,2552.1,1.46923]
[1748118374591,1.9351,2552.2,2552.1,1.46923]
[1748118374894,2.7185,2552.2,2552.1,1.46923]
[1748118375091,1.9351,2552.2,2552.1,1.46923]
[1748118375592,1.2872,2552.2,2552.1,1.46923]
[1748118376498,22.26705,2552.4,2552.3,0.78337]
[1748118376698,23.55425,2552.4,2552.3,0.78337]
[1748118376898,22.7709,2552.4,2552.2,2.0135]
[1748118377088,23.55425,2552.4,2552.3,0.78337]
[1748118379594,22.123,2552.4,2552.3,0.78337]
[1748118379798,4.495,2552.4,2552.3,2.10157]
[1748118380699,5.27834,2552.4,2552.3,2.10157]
[1748118381199,2.07054,2552.4,2552.3,2.10157]
[1748118381495,5.27834,2552.4,2552.3,2.10157]
[1748118384201,4.495,2552.4,2552.3,2.10157]
[1748118384398,3.2078,2552.4,2552.3,2.10157]
[1748118385097,20.36019,2552.6,2552.5,0.7833]
[1748118385701,20.36019,2552.6,2552.5,2.1327]
[1748118386704,2.73019,2552.6,2552.5,2.1327]
[1748118386899,20.36019,2552.6,2552.5,2.1327]
[1748118387394,3.2078,2552.7,2552.6,0.78327]
[1748118387600,3.2078,2552.7,2552.6,2.10117]
[1748118387806,3.13083679,2552.8,2552.7,0.78324]
[1748118388702,0.78323,2552.8,2552.7,0.78324]
[1748118388902,2.15483,2552.8,2552.7,0.78324]
[1748118391806,23.8392873,2553.0,2552.6,1.3179]
[1748118392000,25.9678673,2553.0,2552.9,0.78318]
[1748118392199,0.7832,2552.9,2552.8,0.7832]
[1748118392401,2.1286,2552.9,2552.8,0.7832]
[1748118392907,0.78322,2552.8,2552.7,0.78322]
[1748118393410,0.78321,2552.8,2552.7,0.78322]
[1748118393602,2.1286,2552.9,2552.8,0.78321]
[1748118397119,3.21368051,2553.0,2552.9,0.78318]
[1748118398219,0.00588051,2553.0,2552.9,0.78318]
[1748118398420,0.00588051,2553.0,2552.9,2.83888]
[1748118402218,1.38718051,2553.0,2552.9,2.83888]
[1748118410939,0.00588051,2553.0,2552.9,2.83888]
[1748118414241,1.29378051,2553.0,2552.9,2.83888]
[1748118415233,0.00588051,2553.0,2552.9,2.83888]
[1748118423546,0.00588051,2553.0,2552.9,6.04668]
[1748118425044,0.00588051,2553.0,2552.9,6.77651415]
[1748118427450,1.2932,2553.4,2553.3,0.78306]
[1748118428046,1.2932,2553.4,2553.3,2.88226]
[1748118429049,0.7017,2553.5,2553.4,0.78303]
[1748118429351,0.7017,2553.5,2553.4,2.13823]
[1748118429746,5.5612873,2553.6,2553.5,0.783]
[1748118430049,6.2372873,2553.6,2553.5,0.783]
[1748118430250,6.2372873,2553.6,2553.5,1.4775]
[1748118431848,3.0294873,2553.6,2553.5,1.4775]
[1748118433056,0.68188051,2553.6,2553.5,1.4775]
[1748118436558,1.46485051,2553.6,2553.5,1.4775]
[1748118436758,0.68188051,2553.6,2553.5,1.4775]
[1748118437450,0.68188051,2553.6,2553.5,0.783]
[1748118439654,0.75737677,2553.6,2553.5,0.783]
[1748118441661,0.68188051,2553.6,2553.5,0.783]
[1748118442756,0.75737677,2553.6,2553.5,0.783]
[1748118444666,2.04957677,2553.6,2553.5,0.783]
[1748118445660,1.97408051,2553.6,2553.5,0.783]
[1748118446764,2.04957677,2553.6,2553.5,0.783]
[1748118447865,1.97408051,2553.6,2553.5,0.783]
[1748118454371,4.3216873,2553.6,2553.5,0.783]
[1748118456874,4.39718356,2553.6,2553.5,0.783]
[1748118457872,4.3216873,2553.6,2553.5,0.783]
[1748118460576,1.97408051,2553.6,2553.5,0.783]
[1748118462177,4.3216873,2553.6,2553.5,0.783]
[1748118467176,3.6456873,2553.6,2553.5,0.783]
[1748118467379,2.3534873,2553.6,2553.5,0.783]